Cogmind - Beta 14 @@@ ROGUE MODE // 2024.12.25 @ 04:44:27 Player: puppuppit Result: Destroyed by G-34 Mercenary with Small Laser Performance ------------- Evolutions (0) 0 Regions Visited (2) 400 Robots Destroyed (41) 205 Value Destroyed (812) 812 Prototype IDs (2) 40 Alien Tech Used (0) 0 Bonus (0) 0 TOTAL SCORE: 1457 Bonus ------- None Cogmind --------- Core Integrity 0/250 Matter 283/300 Energy 92/100 System Corruption 5% Temperature Cool (6) Movement Hovering (56) Location -10/Mines Parts ------- > --- POWER (1) -------- (None) > --- PROPULSION (2) --- Hover Unit Hover Unit > --- UTILITY (2) ------ Medium Storage Unit Hacking Suite > --- WEAPON (2) ------- Light Assault Rifle Light Assault Rifle > --- INVENTORY (10) --- Hover Unit Improved Heat Sink High-capacity Matter Pod (200) Hacking Suite Hacking Suite Tractor Beam Light Cannon Signal Generator Peak State ------------ > --- POWER ------------ Light Ion Engine > --- PROPULSION ------- Wheel Wheel > --- UTILITY ---------- Medium Storage Unit Hacking Suite > --- WEAPON ----------- Assault Rifle Light Assault Rifle > --- INVENTORY -------- Hover Unit Hover Unit Hover Unit Hover Unit Hover Unit Heat Sink Large Matter Pod Large Matter Pod Tractor Beam Light Assault Rifle [Rating: 10] Favorites ----------- Power Light Ion Engine Engine Light Ion Engine Propulsion Wheel Wheel Wheel Hover Unit Hover Unit Utility Medium Storage Unit Device Tractor Beam Storage Medium Storage Unit Hackware Hacking Suite Weapon Light Assault Rifle Energy Gun EM Pulse Gun Ballistic Gun Light Assault Rifle Build | -11 -10 -10 ------- Run | Yrd Mat Min Slots Evolved . | . . . Power . | . . . Propulsion . | . . . Utility . | . . . Weapon . | . . . Parts Attached 27 | 6 17 4 Power 2 | 1 1 . Engine 2 | 1 1 . Core . | . . . Reactor . | . . . Propulsion 14 | 2 8 4 Treads . | . . . Leg . | . . . Wheel 4 | 2 2 . Hover 10 | . 6 4 Flight . | . . . Utility 5 | 1 4 . Device 2 | 1 1 . Storage 2 | . 2 . Processor . | . . . Hackware 1 | . 1 . Protection . | . . . Artifact . | . . . Weapon 6 | 2 4 . Energy Gun 1 | 1 . . Energy Cannon . | . . . Ballistic Gun 5 | 1 4 . Ballistic Cannon . | . . . Launcher . | . . . Special Weapon . | . . . Impact Weapon . | . . . Slashing Weapon . | . . . Piercing Weapon . | . . . Special Melee Weapon . | . . . Unidentified Prototypes . | . . . Corrupted Parts 2 | . 2 . System Corruption 4 | . 4 . Parts Lost 9 | . 6 3 Power 1 | . 1 . Propulsion 5 | . 2 3 Utility . | . . . Weapon 3 | . 3 . Highest Loss Streak 2 | . 2 2 To Critical Strikes . | . . . Average Slot Usage (%) 90 | . 92 83 Engine 7 | . 9 . Wheel 16 | . 21 . Hover 10 | . 6 26 Device 7 | . 9 . Storage 11 | . 10 14 Hackware 6 | . 4 14 Energy Gun 3 | . 4 . Ballistic Gun 24 | . 23 28 Peak Build Rating 10 | 6 10 10 Average Rating 7 | 3 7 9 On Entrance 5 | . 6 9 Naked Turns . | . . . Heaviest Build 17 | 8 17 12 Greatest Support 20 | 20 20 12 Greatest Overweight (x) 1 | . 1 1 Average Overweight (x) . | . . . Largest Inventory Capacity 10 | 5 10 10 Average Capacity 8 | 5 8 10 Most Carried 10 | . 10 10 Average Carried 7 | . 6 9 Final Capacity 10 | 5 10 10 Final Carried 10 | . 10 8 Class Distribution -------------------- 63% | Scavenger-Mutant 36% | Mutant Dominant Class ---------------- Scavenger-Mutant | -10/Materials Scavenger-Mutant | -10/Mines Resources | -11 -10 -10 ----------- Run | Yrd Mat Min Matter Collected 1478 | 253 935 290 Remotely 643 | . 643 . Salvage Created 1460 | 50 1158 252 Parts 88 | 2 72 14 Haulers Intercepted 2 | . 2 . Recyclers Shooed 6 | . 4 2 Parts Field Recycled . | . . . Retrieved Matter . | . . . Parts Self-Destructed . | . . . Prevented . | . . . Kills | -11 -10 -10 ------- Run | Yrd Mat Min Combat Hostiles Destroyed 24 | 1 19 4 Guns 24 | 1 19 4 Classes Destroyed 7 | 1 6 . Worker 3 | . 3 . Hauler 2 | . 2 . Recycler 5 | . 3 2 Operator 4 | . 4 . Watcher 3 | . 3 . Swarmer 8 | . 6 2 Grunt 16 | 1 13 2 Best Kill Streak 6 | 1 6 2 Combat Bots Only 6 | 1 6 2 Max Kills in Single Turn 1 | 1 1 1 Gunslinging . | . . . Exploded . | . . . Melee . | . . . Uniques/NPCs Destroyed . | . . . Combat | -11 -10 -10 -------- Run | Yrd Mat Min Hostile Shots Fired 117 | 1 89 27 Missed 39 | . 31 8 Damage Taken 905 | 11 648 246 Core 261 | . 121 140 Absorbed by Shields . | . . . Core Remaining (%) 100 | 100 . . Volleys Fired 174 | 2 143 29 Largest 2 | 2 2 2 Hottest 60 | 60 60 40 Shots Fired 348 | 4 286 58 Gun 348 | 4 286 58 Cannon . | . . . Launcher . | . . . Special . | . . . Kinetic 313 | 2 253 58 Thermal . | . . . Explosive . | . . . Electromagnetic 35 | 2 33 . Robot Hit Streak 9 | 1 9 8 Robot Miss Streak 8 | 1 8 2 Penetration Max . | . . . Secondary Targets 3 | . 3 . Max Gunslinging Chain 1 | . 1 . Shots Hit Robots 209 | 2 168 39 Core Hits 82 | 1 65 16 Critical Kills . | . . . Critical Parts Destroyed . | . . . Critical Strikes . | . . . Melee Attacks . | . . . Impact . | . . . Slashing . | . . . Piercing . | . . . Sneak Attacks . | . . . Combat Hostiles . | . . . Follow-up Attacks . | . . . Damage Inflicted 2105 | 40 1747 318 Guns 2105 | 40 1747 318 Cannons . | . . . Explosions . | . . . Melee . | . . . Ramming . | . . . Kinetic 1857 | 10 1529 318 Thermal . | . . . Explosive . | . . . Electromagnetic 248 | 30 218 . Impact . | . . . Slashing . | . . . Piercing . | . . . Highest Corruption 5 | . 5 5 Average Corruption 3 | . 2 5 Corruption Purged . | . . . Corruption Blocked . | . . . Effects 18 | . 10 8 Message Errors 2 | . 1 1 Matter Fused 4 | . 2 2 Heat Flow Errors 1 | . . 1 Energy Discharges 2 | . 1 1 Parts Rejected 1 | . . 1 Data Loss (minor) 2 | . 2 . Misfires 3 | . 2 1 Alerts 1 | . 1 . Weapon Failures 2 | . 1 1 Overload Shots . | . . . Overflow Damage . | . . . Projectiles . | . . . Explosions . | . . . Melee . | . . . Knockbacks . | . . . Impact . | . . . Kinetic . | . . . Secondary . | . . . Self-Inflicted Damage . | . . . Shots . | . . . Rammed . | . . . Targets Rammed . | . . . Kicked . | . . . Crushed . | . . . Highest Temperature 246 | . 12 246 Average Temperature 29 | . 6 68 Received Heat Transfer 408 | 6 291 111 Siege Activations . | . . . Robots Corrupted . | . . . Combat Hostiles . | . . . Parts Fried . | . . . Impact Corruptions . | . . . Robots Melted . | . . . Combat Hostiles . | . . . Parts Melted . | . . . Heat Transferred . | . . . Parts Sabotaged . | . . . Parts Stolen . | . . . Parts Stripped . | . . . Power Chain Reactions . | . . . Alert | -11 -10 -10 ------- Run | Yrd Mat Min Peak Influence 305 | 20 305 169 Initial 44 | . 13 44 Average 118 | 4 125 112 Maximum Alert Level 1 | . 1 . Low Security (%) 83 | 100 77 100 Level 1 16 | . 22 . Level 2 . | . . . Level 3 . | . . . Level 4 . | . . . Level 5 . | . . . High Security . | . . . Max Security . | . . . Squads Dispatched 5 | . 4 1 Investigation 1 | . 1 . Extermination . | . . . Reinforcement 3 | . 3 . Assault 1 | . . 1 Garrison . | . . . Intercept . | . . . Searches Triggered . | . . . Construction Impeded . | . . . Haulers Reinforced . | . . . Active Scanning Responses . | . . . Cargo Convoy Interrupts . | . . . Stealth | -11 -10 -10 --------- Run | Yrd Mat Min Distress Signals 6 | . 6 . Communications Jammed . | . . . Distress Signals . | . . . Times Spotted 44 | 1 31 12 Peak Tracking Total 5 | 1 5 3 Tactical Retreats 2 | . 1 1 Traps | -11 -10 -10 ------- Run | Yrd Mat Min Traps Triggered 1 | . 1 . Indirectly . | . . . Trap Hack Attempts . | . . . Triggered . | . . . Disarmed . | . . . Reprogrammed . | . . . Reused 4 | . . 4 Traps Extracted . | . . . Installed 4 | . . 4 Triggered 4 | . . 4 Most Traps Carried 2 | . . 2 Machines | -11 -10 -10 ---------- Run | Yrd Mat Min Machines Disabled . | . . . Max in Single Turn . | . . . Machines Repaired . | . . . Machines Dismantled . | . . . Machines Sabotaged . | . . . Overloaded Fab Kills . | . . . Hacking | -11 -10 -10 --------- Run | Yrd Mat Min Machines Accessed 7 | . 6 1 Terminals 6 | . 5 1 Fabricators . | . . . Repair Stations . | . . . Recycling Units 1 | . 1 . Scanalyzers . | . . . Garrison Access . | . . . Total Hacks 25 | . 21 4 Successful 13 | . 10 3 Failed 11 | . 10 1 Catastrophic . | . . . Database Lockouts 1 | . 1 . Manual 10 | . 6 4 Terminals 22 | . 18 4 Fabricators . | . . . Repair Stations . | . . . Recycling Units 3 | . 3 . Scanalyzers . | . . . Garrison Access . | . . . Terminal Hacks 13 | . 10 3 Record 2 | . 2 . Robot Analysis 4 | . 1 3 Prototype ID Bank 1 | . 1 . Alert Level 1 | . 1 . Unreport Threat 2 | . 2 . Locate Traps 2 | . 2 . Zone Layout 1 | . 1 . Fabricator Hacks . | . . . Repair Station Hacks . | . . . Recycling Unit Hacks . | . . . Scanalyzer . | . . . Garrison Access Hacks . | . . . Unauthorized Hacks . | . . . Terminals . | . . . Fabricators . | . . . Repair Stations . | . . . Recycling Units . | . . . Scanalyzers . | . . . Garrison Access . | . . . Data Cores Recovered 1 | . 1 . Used 1 | . 1 . Hacking Detections 6 | . 5 1 Full Trace Events 4 | . 3 1 Feedback Events 1 | . 1 . Corruption 1 | . 1 . Feedback Blocked . | . . . Robot Schematics Acquired . | . . . Robots Built . | . . . Authchips . | . . . Time . | . . . Total Robot Build Rating . | . . . Part Schematics Acquired . | . . . Parts Built . | . . . Authchips . | . . . Time . | . . . Total Part Build Rating . | . . . Parts Repaired . | . . . Time . | . . . Parts Recycled . | . . . Recycled Matter . | . . . Retrieved Matter . | . . . Retrieved Components . | . . . Parts Scanalyzed . | . . . Part Schematics Acquired . | . . . Parts Damaged . | . . . Bothacking | -11 -10 -10 ------------ Run | Yrd Mat Min Used RIF Installer . | . . . Robots Hacked . | . . . Non-combat . | . . . Combat . | . . . Robot Hacks Applied . | . . . Relay Couplers Released . | . . . Fabnet Peak Effective % . | . . . Robots Rewired . | . . . Allies Hacked . | . . . Hacks Repelled . | . . . Allies | -11 -10 -10 -------- Run | Yrd Mat Min Total Allies 1 | . . 1 Largest Group 1 | . . 1 Highest-Rated Group 31 | . . 31 Highest-Rated Ally 31 | . . 31 Total Orders . | . . . Ally Attacks 1 | . . 1 Total Damage . | . . . Kills . | . . . Allies Corrupted . | . . . Allies Melted . | . . . Intel | -11 -10 -10 ------- Run | Yrd Mat Min Robot Analysis Total 4 | . 1 3 Derelict Logs Recovered 1 | . . 1 Drone Launches . | . . . Drone Recoveries . | . . . Exploration | -11 -10 -10 ------------- Run | Yrd Mat Min Turns Passed 1493 | 53 1113 327 Spaces Moved 1338 | 54 881 403 Core 15 | 15 . . Treads . | . . . Legs . | . . . Wheels 667 | 39 628 . Hover 656 | . 253 403 Flight . | . . . Fastest Speed 50 | 50 56 56 Average Speed 68 | 71 73 56 Slowest Speed 120 | 80 120 120 Overloaded Moves . | . . . Propulsion Burnouts . | . . . Robots Hopped . | . . . Cave-ins Triggered . | . . . Exploration Rate (%) 53 | 5 97 58 Regions Visited 2 Branch Regions 1 Pre-discovered Areas . | . . . Known Exits Taken . | . . . Unknown Exits Taken 2 | 1 1 . Scrap Searched 2 | . . 2 Spaces Dug . | . . . Terrain Destroyed . | . . . Melee . | . . . Projectile . | . . . AOE . | . . . Terrain Rammed . | . . . Walls Destroyed . | . . . Machines Disabled . | . . . Actions | -11 -10 -10 --------- Run | Yrd Mat Min Total 1621 | 61 1100 460 Wait 23 | . 20 3 Move 1336 | 53 880 403 Hop . | . . . Pick Up 32 | . 23 9 Fast Attach 11 | 6 4 1 Attach 7 | . 4 3 Detach 1 | . 1 . Swap 9 | . 9 . Drop 24 | . 16 8 Fire 174 | 2 143 29 Melee . | . . . Ram . | . . . Kick . | . . . Crush . | . . . Escape Stasis . | . . . Rewire . | . . . Trap 4 | . . 4 Miscellaneous . | . . . Route ------- -11/Scrapyard -10/Materials (discovered 6 exits: [*Mat x3] / *Min x2 / [*Sub]) -10/Mines (discovered 1 exit: [*Mat]) History --------- Turn | Location | Event 2 | -11/Scrapyard | Met Revision 17 37 | -11/Scrapyard | Discovered new exit (range 8) 54 | -11/Scrapyard | Entered Materials 247 | -10/Materials | Discovered new exit (range 15) 295 | -10/Materials | Discovered new exit (range 15) 327 | -10/Materials | Build established: Mutant 577 | -10/Materials | Central database locked down 601 | -10/Materials | Discovered new exit (range 14) 819 | -10/Materials | Discovered new exit (range 16) 827 | -10/Materials | Build established: Scavenger-Mutant 997 | -10/Materials | Discovered new exit (range 15) 1150 | -10/Materials | Discovered new exit (range 8) 1167 | -10/Materials | Entered Mines 1192 | -10/Mines | Found a hidden stash of uninstalled traps 1250 | -10/Mines | Core integrity fell below 50% 1320 | -10/Mines | Discovered new exit (range 5) 1418 | -10/Mines | Met a Derelict testing a Signal Generator 1422 | -10/Mines | Found Signal Generator 1463 | -10/Mines | Learned location of 1 exit from Materials 1471 | -10/Mines | Core integrity fell below 20% 1494 | -10/Mines | Destroyed by G-34 Mercenary with Small Laser Last Messages --------------- 01422_ ALERT: Intercepting significant anomalous signal. Dispatching assault force. 01422_ Acquired Signal Generator. 01423_ NC-B7S(g): "Okay, I guess that means it works. Now let's get out of here!" 01424_ System corrupted: Heat flow error (+265). 01434_ K-01 Serf collects debris. 01449_ Acquired 7 matter. 01463_ Acquired derelict log, extracted data. Data stored: Materials exits (x1). 01474_ Hover Unit destroyed. 01483_ Dropped Proton Bomb Trap. 01484_ Installed Proton Bomb Trap. 01488_ G-34 Mercenary triggered Proton Bomb Trap. 01488_ A bubble of electromagnetic force engulfs the area. 01488_ G-34 Mercenary destroyed. 01494_ C-30 ARC: "LOCATED POTENTIAL SOURCE OF ANOMALOUS SIGNAL. NEUTRALIZING." 01494_ C-30 ARC bursts open, deploying its payload. 01494_ G-47 Trooper unfolds itself. 01494_ G-34 Mercenary unfolds itself. 01494_ M-13 Machinist unfolds itself. Map ----- +----------------------------------------------------+ | ?????????????????????????????????????????????? | | ?????????????????????????????????????????????? | | ?????????????????????????????????????????????? | | ????????????????????####?????????????????????? | | ???????????????????? #?????????????????????? | | ???????????????????? ?????????????????????? | | ???????????????????? ??????#??????????????? | | ????????????????????# #????? ??????????????? | | ???????????????????? #?????? """???????????? | | ????????????????????# #?????? """???????????? | | ?????????????####???# #?????? ""????????????? | | ?????????????? #???# #?????? ????????????? | | ??????????????# #???# #??????# #????????????? | | ??????????????# ##### ##?????# #????????????? | | ??????????????# g ##?#### #????????????? | | ??????????????#%#####%g ### ##???????????? | | ??????????????#!####m ###?????????? | | ?????????????##* ## g ##????????? | | ?????????????# #????????? | | ?????????????# #????????? | | ????????????# ## ### #????????? | | ????????????# ### ### ##?## ##????? | | ????????????## ##?# ##?####???# #????? | | ?????????????####??# #???????### ##???? | | ???????????????????# t#???????# #????? | | ???????????????????# @#???????# #????? | | ???????????????? #???????# #????? | | ???????????????########???????#""" #????? # | | ??????????????????????????????#""" #????? # | | ??????????????????????????????#""" #?????# # | | ?????????????????????????????## #?????# # | | ?????????????????????????????#T #?????# # | | ?????????????????????????????### ####?????# # | | ???????????????????????????????#%######???# # | | ???????????????????????????????# ! #???# # | | ???????????????????????????########## ##### # | | ??????????????????????????## ##????# # | | ??????????????????????????# #????## #### # | | ??????????????????????????# #?????# #??# # | | ??????????????????????????# ##?#### #??# # | | ??????????????????????????# #?# #?## | | ??????????????????????????# ### ####?# | | ??????????????????????????# #????# | | ??????????????????????????## ######???## | | ???????????????????????????## #???????## % | | ????????????????????????????# #######?# % | | ????????????????????????????# #?# = | | ????????????????????????????# ### | | ?????????????????????????########## ## | | ????????????????????????## ##????# """ | +----------------------------------------------------+ Best States ------------- Heat Dissipation 35 Energy Generation 10 Energy Capacity 125 Matter Stores 300 Matter Capacity 300 Sight Range 16 Terrain Scan Density 10 Evasion (%) 53 Offensive Hacking 10 Item Schematics ----------------- None Robot Schematics ------------------ None Fabricated ------------ Nothing Alien Tech Used ----------------- None Achievements -------------- Use The Force Challenges ------------ None Game ------ Seed OvertunedCouplerInterpreter Manual? 0 Play Time 00:18:18 Cumulative 3.4 hours Start 2024.12.25 @ 04:29:40 End 2024.12.25 @ 04:44:27 Sessions 1 Manual Loads 0 Difficulty Rogue Special Mode None Game No. 2 Rogue 2 Adventurer 0 Explorer 0 Win Type - Total 0 Types 0/0/0/0/0/0/0/0/0 Lore% 9 Gallery% 8 Achievement% 16 Wizard Run 0 Options --------- Layout 0 ASCII 0 Keyboard 1 Movement Arrows Keybinds 0 Fullscreen 1 Font 12/Proggy Map View 83x54 Zoom Use 0% Tactical HUD 1 Map Filters NONE Filters NONE Steam 0 RUN: 55cb64cf-d82f-4ce7-a312-5d6be389871a